bitfinex/quotes_ETHUSD_20240621
["timestamp","ask_amount","ask_price","bid_price","bid_amount"]
[1718958440373,0.55,3494.3,3493.4,0.99402694]
[1718958441375,0.55,3494.3,3493.4,0.02887394]
[1718958442393,1.04576277,3494.3,3493.4,0.02887394]
[1718958442600,0.55,3494.3,3493.4,0.02887394]
[1718958442813,2.4628,3494.1,3493.4,0.02887394]
[1718958442962,1.04576277,3494.0,3493.4,0.02887394]
[1718958443157,1.04576277,3494.0,3493.1,7.30773]
[1718958443158,0.4958105,3493.9,3493.1,7.30773]
[1718958443411,0.55,3493.8,3493.5,0.02886622]
[1718958443699,0.55,3493.8,3493.6,0.02886622]
[1718958444220,3.0558105,3493.8,3492.8,7.30773]
[1718958444383,0.4958105,3493.7,3492.8,7.30773]
[1718958444701,0.55,3493.6,3492.9,0.02886622]
[1718958444905,1.0458105,3493.6,3492.9,0.02886622]
[1718958446114,3.4737105,3493.6,3492.9,0.02886622]
[1718958446407,3.49589901,3493.5,3492.9,0.02886622]
[1718958446639,0.55,3493.4,3492.9,0.02886622]
[1718958446763,0.55,3493.4,3492.8,7.30773]
[1718958446764,1.04589765,3493.4,3492.8,7.30773]
[1718958446961,0.55,3493.4,3492.8,7.30773]
[1718958447205,0.55,3493.4,3492.9,0.0291829]
[1718958449585,0.55,3493.7,3492.9,0.0291829]
[1718958449914,1.04586144,3493.7,3492.9,0.0291829]
[1718958450079,0.49586144,3493.6,3492.9,0.0291829]
[1718958450420,0.55,3493.5,3492.9,0.0291829]
[1718958450621,1.04586144,3493.5,3492.9,0.0291829]
[1718958450783,0.55,3493.5,3492.9,0.0291829]
[1718958450983,0.55,3493.8,3492.9,0.0291829]
[1718958451211,0.55,3493.8,3492.8,7.30773]
[1718958451737,0.838,3493.3,3492.8,7.30773]
[1718958451894,1.04586144,3493.2,3492.8,7.30773]
[1718958452089,1.04586144,3493.2,3492.9,0.02952657]
[1718958452498,0.4958665,3493.1,3492.9,0.02952657]
[1718958452701,0.55,3493.0,3492.9,0.02952657]
[1718958452897,1.0458665,3493.2,3492.9,0.02952657]
[1718958452898,0.4958665,3493.1,3492.9,0.02952657]
[1718958453135,0.55,3493.0,3492.7,2.3479]
[1718958453430,1.0458665,3493.0,3492.7,2.3479]
[1718958454040,1.0458665,3493.0,3492.8,0.02951885]
[1718958455511,0.55,3493.0,3492.8,0.02951885]
[1718958455710,1.0458931,3493.0,3492.8,0.02951885]
[1718958455924,0.838,3492.9,3492.8,0.02951885]
[1718958456237,0.838,3492.9,3492.0,2.2707]
[1718958456238,2.05141731,3492.9,3492.0,2.2707]
[1718958456440,2.05141731,3492.9,3492.1,0.02867739]
[1718958456441,0.49596331,3492.8,3492.1,0.02867739]
[1718958456617,0.838,3492.2,3492.1,0.02867739]
[1718958457024,1.88396331,3492.2,3492.1,0.02867739]
[1718958457267,1.88396331,3492.2,3491.3,9.57843]
[1718958457414,1.04596331,3492.1,3491.3,9.57843]
[1718958457759,0.838,3491.6,3491.4,0.02867739]
[1718958457911,1.04596331,3491.5,3491.4,0.02867739]
[1718958458253,1.33396331,3491.5,3491.4,0.02867739]
[1718958458453,1.88396331,3491.5,3491.4,0.02867739]
[1718958458756,1.04610635,3491.5,3491.4,0.02867739]
[1718958459951,3.0,3492.1,3491.4,0.25861513]
[1718958460126,3.30177079,3493.4,3491.5,2.3036]
[1718958460127,3.0,3492.6,3491.5,2.3036]
[1718958460330,3.0,3492.6,3491.4,0.25861513]
[1718958460331,0.49597914,3492.5,3491.7,2.3036]
[1718958460528,0.49597914,3493.2,3491.8,0.0572668]
[1718958460942,0.49597914,3493.2,3491.9,0.02867739]
[1718958461119,0.49597914,3493.2,3491.9,0.26763181]
[1718958461824,0.49597914,3493.2,3492.0,0.05726975]
[1718958462056,0.49597914,3493.5,3492.1,2.40361637]
[1718958463128,2.013,3493.2,3492.1,2.40361637]
[1718958463330,0.49597914,3493.1,3492.1,2.40361637]
[1718958463566,3.49597914,3493.1,3492.1,2.40361637]
[1718958463854,1.04597914,3493.0,3492.1,2.40361637]
[1718958464769,0.49597029,3492.9,3492.1,2.40361637]
[1718958464947,0.55,3492.8,3492.1,2.40361637]
[1718958465453,1.04596764,3492.8,3492.1,3.37475101]
[1718958465757,0.49596764,3492.7,3492.1,3.37475101]
[1718958465924,0.55,3492.6,3492.1,3.37475101]
[1718958466468,1.04596468,3492.6,3492.1,3.37475101]
[1718958466645,0.55,3492.6,3492.2,1.0682481]
[1718958466865,0.55,3492.6,3492.3,0.02871985]
[1718958467067,0.55,3492.6,3492.2,1.0682481]
[1718958467669,0.55,3492.6,3492.3,0.02871985]
[1718958467888,0.55,3492.6,3492.2,1.0682481]
[1718958468060,0.55,3492.9,3492.3,0.37302466]
[1718958468240,0.55,3493.0,3492.3,0.37302466]
[1718958469266,0.55,3493.0,3492.3,0.02871985]
[1718958469869,2.013,3492.9,3492.1,2.3748]
[1718958470101,2.013,3492.9,3492.2,0.02881252]
[1718958470102,1.04592712,3492.8,3492.2,0.02881252]
[1718958470445,4.04592712,3492.8,3492.2,0.02881252]
[1718958470649,0.49592712,3492.7,3492.2,0.02881252]
[1718958470842,0.55,3492.6,3492.2,0.02881252]
[1718958471184,0.49597825,3492.7,3492.2,0.02881252]
[1718958471353,0.55,3492.6,3492.2,0.02881252]
[1718958474049,1.04595075,3492.6,3492.2,0.99994677]
[1718958474353,0.49595075,3492.6,3492.3,2.3239]
[1718958474692,0.49586896,3493.3,3492.4,0.0289224]
[1718958474844,0.49586896,3493.5,3492.4,0.0289224]
[1718958475044,0.49586896,3493.6,3492.5,0.33239567]
[1718958475286,0.4958736,3493.6,3492.5,0.33239567]
[1718958475528,0.4958736,3493.6,3492.6,0.0289224]
[1718958476044,0.55,3493.5,3492.6,0.0289224]
[1718958477149,1.04586808,3493.5,3492.6,0.0289224]
[1718958477449,0.49586808,3493.4,3492.5,0.33239567]
[1718958477676,0.55,3493.3,3492.5,0.33239567]
[1718958478078,0.55,3493.3,3492.6,2.2707]
[1718958478291,0.55,3493.6,3492.7,0.28911229]
[1718958480253,4.288,3493.5,3492.7,0.02880272]
[1718958480453,3.49587841,3493.4,3492.3,7.30773]
[1718958480676,0.49587841,3493.3,3492.4,0.02858655]
[1718958480886,0.55,3493.2,3492.4,0.99401821]
[1718958482981,1.04586746,3493.2,3492.4,0.99401821]
[1718958483185,0.55,3493.2,3492.4,0.99401821]
[1718958483395,1.04586746,3493.2,3492.5,2.2852]
[1718958483564,0.55,3493.2,3492.6,1.05869482]
[1718958483767,0.55,3493.2,3492.6,1.08715013]
[1718958484487,0.49586355,3493.6,3492.7,2.336]
[1718958484982,3.49586355,3494.4,3492.8,0.02845917]
[1718958485195,0.49586355,3494.3,3493.0,2.4197]
[1718958485395,0.49586355,3494.3,3493.1,0.05724567]
[1718958485547,0.49586355,3494.3,3493.2,2.4197]
[1718958485749,0.49571638,3494.8,3493.3,0.307774]
[1718958486180,0.49571638,3494.8,3493.4,0.02837041]
[1718958486378,2.013,3494.5,3493.4,0.02837041]
[1718958486575,0.49571638,3494.4,3493.4,0.02837041]
[1718958486812,3.49571638,3494.4,3493.4,0.02837041]
[1718958486985,1.04571638,3494.3,3493.2,2.4197]
[1718958487187,1.04571638,3494.3,3493.5,0.02819291]
[1718958487353,1.04571638,3494.3,3493.2,2.4197]
[1718958487557,1.04571638,3494.3,3493.6,0.02818905]
[1718958487865,1.04571638,3494.3,3493.7,0.02818905]
[1718958488077,1.04571638,3494.3,3493.2,2.4197]
[1718958488253,1.04571638,3494.3,3493.3,0.27015905]
[1718958488877,0.49575445,3494.2,3493.3,0.27015905]
[1718958489083,0.49575445,3494.3,3493.3,0.27015905]
[1718958489278,0.49575445,3494.7,3493.4,0.26898591]
[1718958489508,0.49575445,3494.7,3493.5,0.02820449]
[1718958491172,0.55,3494.6,3493.5,0.02820449]
[1718958491663,0.55,3494.7,3493.5,0.02820449]
[1718958491995,0.55,3494.7,3493.6,0.76049204]
[1718958492495,0.55,3494.7,3493.7,0.02787652]
[1718958492913,0.49573107,3494.6,3493.7,0.02787652]
[1718958493194,0.55,3494.5,3493.8,2.3685]
[1718958493781,0.55,3494.5,3493.9,0.02787652]
[1718958495416,4.9545,3494.5,3493.9,0.02787652]
[1718958495695,3.0,3494.4,3493.4,7.30773]
[1718958495898,3.0,3494.4,3493.5,0.02786109]
[1718958495899,0.55,3494.3,3493.5,0.02786109]
[1718958498490,0.55,3494.3,3493.6,2.2509]
[1718958498812,0.55,3494.5,3493.7,0.02793439]
[1718958499894,2.4621,3494.4,3493.7,0.02793439]
[1718958500071,2.563,3494.3,3493.4,7.30773]
[1718958500266,3.0,3494.2,3493.5,0.02787652]
[1718958500472,0.55,3494.1,3493.5,0.02787652]
[1718958502801,0.55,3494.1,3493.6,2.3336]
[1718958503211,3.0,3494.4,3493.7,0.02799999]
[1718958503508,3.0,3494.7,3493.7,0.02799999]
[1718958503671,2.30121818,3495.0,3493.8,2.3336]
[1718958503876,2.30121818,3495.0,3493.9,0.0281196]
[1718958504106,2.013,3495.0,3493.9,0.0281196]
[1718958504795,2.013,3495.0,3494.0,2.2781]
[1718958505172,2.013,3495.0,3494.1,0.02797299]
[1718958505923,0.55,3494.9,3494.1,0.02797299]
[1718958506076,3.55,3494.9,3494.1,0.02797299]
[1718958506979,3.0,3494.8,3494.1,0.02797299]
[1718958507319,0.55,3494.7,3494.1,0.02797299]
[1718958507678,0.55,3495.0,3494.1,0.02797299]
[1718958509716,2.013,3494.8,3494.1,0.02797299]
[1718958509920,0.55,3494.7,3494.1,0.02797299]
[1718958510106,3.55,3494.7,3494.1,0.02797299]
[1718958510306,3.55,3494.7,3493.9,7.30773]
[1718958510493,3.0,3494.6,3494.0,0.02780327]
[1718958510819,0.55,3494.5,3494.0,0.02780327]
[1718958510980,0.55,3494.7,3494.0,0.02780327]
[1718958511181,0.55,3494.8,3494.0,0.02780327]
[1718958513012,4.04571266,3494.9,3494.0,0.02780327]
[1718958513253,0.49571235,3494.8,3494.0,0.02780327]
[1718958513433,0.55,3494.7,3493.9,7.30773]
[1718958513745,2.50871235,3494.6,3493.9,7.30773]
[1718958513920,4.04571235,3494.5,3494.0,0.02754863]
[1718958514125,0.49571235,3494.4,3493.9,7.30773]
[1718958514454,1.04571235,3494.3,3493.9,7.30773]
[1718958514617,0.49571235,3494.2,3493.7,2.3192]
[1718958514815,0.49571235,3494.1,3494.0,0.02754863]
[1718958515016,0.55,3494.1,3493.7,2.3192]
[1718958515223,0.55,3494.0,3493.7,2.3192]
[1718958515543,1.04571235,3494.0,3493.7,2.3192]
[1718958515715,0.55,3494.0,3493.7,2.3192]
[1718958516048,3.0,3494.5,3493.7,2.3192]
[1718958516049,1.04571235,3494.3,3493.7,2.3192]
[1718958516355,2.50879453,3494.2,3493.4,2.3588]
[1718958516644,4.04579453,3494.1,3493.4,2.3588]
[1718958516953,3.49579453,3494.0,3493.4,2.3588]
[1718958517129,1.04579453,3493.9,3493.4,2.3588]
[1718958517629,0.49579453,3493.8,3493.4,2.3588]
[1718958517813,0.55,3493.7,3493.4,2.3588]
[1718958518155,0.49579453,3493.8,3493.4,2.3588]
[1718958518365,0.55,3493.7,3493.0,2.254]
[1718958518523,0.49579453,3493.8,3493.0,2.254]
[1718958518717,0.55,3493.9,3493.0,2.254]
[1718958518718,0.55,3493.7,3493.0,2.254]
[1718958518918,0.49579453,3493.8,3493.0,2.254]
[1718958519158,0.55,3493.7,3493.0,2.254]
[1718958519462,0.4958512,3493.8,3493.0,2.254]
[1718958519620,0.55,3493.7,3493.0,2.254]
[1718958519817,1.04585134,3493.7,3493.0,2.254]
[1718958520022,0.55,3493.7,3493.0,2.254]
[1718958520332,0.55,3493.9,3493.0,2.254]
[1718958522956,1.0458513,3494.0,3493.0,2.254]
[1718958523267,0.49585078,3493.9,3493.0,2.254]
[1718958523566,0.55,3493.8,3493.0,2.254]
[1718958523921,1.04584597,3493.9,3493.0,2.254]
[1718958524122,0.49584597,3493.8,3493.0,2.254]
[1718958524366,0.55,3493.7,3493.0,2.254]
[1718958524622,0.49584597,3493.8,3493.0,2.254]
[1718958524948,0.55,3493.7,3493.0,2.254]
[1718958525160,1.04584597,3493.7,3493.0,2.254]
[1718958525355,0.55,3493.7,3493.0,2.254]
[1718958525524,1.04584597,3493.9,3493.0,2.254]
[1718958525725,2.013,3493.8,3493.0,2.254]
[1718958525925,1.04591608,3493.7,3492.8,7.30773]
[1718958526222,1.04591608,3493.7,3492.9,0.02783027]
[1718958526223,2.013,3493.4,3492.9,0.02783027]
[1718958526425,0.49591608,3493.3,3492.9,0.02783027]
[1718958526626,0.55,3493.2,3492.9,0.02783027]
[1718958527137,1.04591608,3493.2,3492.9,0.02783027]
[1718958527349,2.013,3493.0,3492.9,0.02783027]
[1718958527517,3.05891608,3493.0,3492.3,2.4809]
[1718958527721,1.04591608,3492.9,3492.4,0.02783027]
[1718958527920,4.04591608,3492.9,3492.4,0.02783027]
[1718958528164,0.49591608,3492.8,3492.4,0.02783027]
[1718958528457,0.55,3492.7,3492.4,0.02783027]
[1718958528856,2.013,3492.5,3492.4,0.02783027]
[1718958529027,3.05903219,3492.5,3491.5,9.78863]
[1718958529222,3.49603219,3492.4,3491.5,9.78863]
[1718958529425,3.49603219,3492.4,3491.6,0.02783027]
[1718958529426,1.04603219,3492.3,3491.6,0.02783027]
[1718958530103,1.04603219,3492.3,3489.0,7.30773]
[1718958530104,2.4667,3491.6,3489.0,7.30773]
[1718958530364,2.4667,3491.6,3488.0,1.49985303]
[1718958530365,2.013,3489.4,3487.5,7.30773]
[1718958530579,2.013,3489.8,3487.3,1.148766]
[1718958530730,1.04642341,3489.7,3487.4,2.29396]
[1718958530934,0.55,3489.7,3487.4,2.29396]
[1718958531160,0.55,3489.7,3487.3,0.75]
[1718958531161,0.55,3489.7,3487.5,2.29389]
[1718958531472,0.55,3489.7,3487.9,0.05731566]
[1718958531627,3.55,3489.7,3487.9,0.05731566]
[1718958533653,2.013,3489.4,3488.0,0.25382157]
[1718958533962,0.55,3489.3,3488.0,0.25382157]
[1718958536226,0.55,3489.3,3488.0,7.56155157]
[1718958538170,3.0,3489.7,3488.0,7.56155157]
[1718958538343,2.013,3489.8,3488.1,1.30424516]
[1718958538682,0.55,3489.7,3488.1,1.30424516]
[1718958538836,3.55,3489.7,3488.1,1.30424516]
[1718958544766,3.55,3489.7,3488.2,2.2675]
[1718958544961,3.55,3489.7,3488.3,1.11332967]
[1718958545802,2.013,3488.4,3487.4,7.30773]
[1718958545967,2.013,3488.4,3486.7,14.7554]
[1718958545968,2.013,3488.4,3486.7,2.4754]
[1718958546281,0.55,3488.3,3486.7,2.4754]
[1718958546481,2.013,3488.4,3486.7,2.4754]
[1718958546787,2.013,3488.4,3486.8,0.24754]
[1718958548193,2.013,3488.4,3486.8,3.24754]
[1718958548373,2.013,3489.1,3486.9,2.2851]
[1718958548561,2.013,3489.5,3487.0,2.2851]
[1718958548763,2.013,3489.5,3487.2,2.2851]
[1718958548973,2.013,3489.5,3487.2,5.2851]
[1718958549172,2.013,3489.5,3487.3,4.2981]
[1718958549372,2.013,3489.5,3487.5,2.2837]
[1718958549687,2.3134,3490.3,3487.6,0.72967]
[1718958549688,2.013,3488.5,3487.6,0.72967]
[1718958549852,2.013,3488.5,3487.0,2.2837]
[1718958550478,0.55,3488.4,3487.0,2.2837]
[1718958551226,3.55,3488.4,3487.0,2.2837]
[1718958552977,3.55,3488.4,3486.8,0.24754]
[1718958552978,5.332,3488.3,3486.2,7.30773]
[1718958553187,5.332,3488.3,3485.8,1.149163]
[1718958553188,2.013,3487.1,3485.8,1.149163]
[1718958553380,2.013,3486.8,3484.8,2.4719]
[1718958553580,2.013,3487.6,3485.3,2.013]
[1718958553822,0.49673729,3487.5,3485.4,0.430848]
[1718958553982,0.55,3487.4,3485.4,0.430848]
[1718958554519,0.55,3487.4,3485.3,2.013]
[1718958554805,3.0,3487.5,3485.7,2.013]
[1718958555007,2.312,3487.8,3485.7,2.013]
[1718958555313,0.49669777,3487.7,3485.7,2.013]
[1718958555518,0.49669777,3487.7,3485.8,0.02570291]
[1718958555519,3.49669777,3487.7,3485.8,0.02570291]
[1718958555719,3.0,3487.7,3485.9,0.20387029]
[1718958556013,2.312,3487.8,3486.0,0.02826867]
[1718958558285,3.0,3488.0,3486.0,0.02826867]
[1718958558479,2.013,3488.1,3486.0,0.02826867]
[1718958558704,0.55,3488.0,3486.0,0.02826867]
[1718958558909,3.55,3488.0,3486.0,0.02826867]
[1718958559625,2.013,3487.7,3486.0,0.02826867]
[1718958559984,0.55,3487.6,3485.5,3.0]
[1718958560316,3.55,3487.6,3485.6,7.33599867]
[1718958560625,3.55,3487.6,3485.7,3.0]
[1718958560799,3.55,3487.6,3485.8,1.03359987]
[1718958561184,3.55,3487.6,3485.9,0.02826867]
[1718958561624,3.0,3487.6,3485.9,0.02826867]
[1718958561825,2.013,3488.1,3485.9,0.02826867]
[1718958562057,0.55,3488.0,3486.1,2.2565]
[1718958562230,3.55,3488.0,3486.1,2.2565]
[1718958562720,3.55,3488.0,3486.2,0.02826867]
[1718958563597,3.0,3488.0,3486.2,0.02826867]
[1718958563803,2.013,3488.6,3486.3,2.013]
[1718958564044,2.013,3488.6,3486.4,8.06576006]
[1718958565008,0.55,3488.5,3486.4,8.06576006]
[1718958565205,3.55,3488.5,3486.4,8.06576006]
[1718958565607,0.49661159,3488.4,3486.4,8.06576006]
[1718958565809,0.49661159,3488.4,3486.5,1.23735101]
[1718958566000,0.49661159,3488.4,3486.6,0.02810609]
[1718958567442,3.49661159,3488.4,3486.7,4.94814627]
[1718958567605,3.0,3488.8,3486.8,2.49493915]
[1718958567606,0.49661159,3488.3,3486.8,2.49493915]
[1718958567809,0.49661159,3488.7,3486.9,3.53741091]
[1718958568119,0.49661159,3488.9,3487.0,1.02565198]
[1718958568320,0.49661159,3488.9,3487.1,8.51250028]
[1718958568521,0.49661159,3488.9,3487.1,7.51454237]
[1718958568724,0.49654616,3488.9,3487.1,7.51454237]
[1718958568912,0.55,3488.8,3487.1,7.51454237]
[1718958569112,1.04654592,3488.8,3487.2,0.02767632]
[1718958569341,0.55,3488.8,3487.3,1.75216319]
[1718958569637,1.04654592,3488.8,3487.4,0.05729543]
[1718958569831,0.55,3488.8,3487.4,0.08497175]
[1718958570149,0.49654592,3488.7,3487.4,0.02767632]
[1718958570348,0.49654592,3488.6,3487.4,0.02767632]
[1718958570502,0.55,3488.8,3487.4,0.02767632]
[1718958570503,0.49654592,3488.7,3487.4,0.02767632]
[1718958570707,0.55,3488.8,3487.4,0.02767632]
[1718958570708,0.49654592,3488.6,3487.4,0.02767632]
[1718958570907,0.49654592,3488.7,3487.4,0.91671174]
[1718958571122,0.49654592,3488.6,3487.4,0.91671174]
[1718958571318,0.49654592,3488.7,3487.4,0.91671174]
[1718958571551,0.49654592,3488.6,3487.4,0.91671174]
[1718958571844,3.0,3488.6,3487.4,0.91671174]
[1718958572157,0.49660239,3488.5,3487.4,0.91671174]
[1718958572314,0.49660239,3488.5,3487.5,0.99801833]
[1718958572513,0.49660239,3488.5,3487.4,0.91671174]
[1718958572721,0.49660239,3488.4,3487.6,0.02757182]
[1718958572920,0.49660239,3488.5,3487.4,0.88903542]
[1718958573225,0.49660239,3488.5,3487.5,2.49501836]
[1718958573429,0.49660239,3488.4,3487.6,2.52257083]
[1718958573638,0.49660239,3488.5,3487.6,0.51773847]
[1718958573956,0.49660239,3488.4,3487.6,0.02755247]
[1718958574256,0.49660239,3488.5,3487.6,0.02755247]
[1718958574441,3.0,3488.6,3487.4,1.48513691]
[1718958574442,0.49660239,3488.4,3487.7,2.49498825]
[1718958574620,0.49660239,3488.3,3487.7,0.02755247]
[1718958574806,0.49660239,3488.5,3487.7,0.02755247]
[1718958575005,0.49656189,3488.4,3487.8,0.99797303]
[1718958575252,0.49656189,3488.5,3487.9,1.02553669]
[1718958575422,3.0,3488.6,3487.9,0.02755247]
[1718958575423,0.49656189,3488.4,3487.9,0.02755247]
[1718958575620,0.49656189,3488.3,3487.7,0.59610149]
[1718958575836,0.49656189,3488.5,3487.8,2.52247752]
[1718958576152,0.49656189,3488.4,3487.9,2.49492505]
[1718958576310,0.49656189,3488.3,3487.8,0.02755247]
[1718958576652,3.49656189,3488.6,3487.9,1.02552318]
[1718958576809,1.14403811,3488.5,3487.9,0.02755247]
[1718958577010,0.49656189,3488.4,3487.7,0.59610149]
[1718958577210,0.49656189,3488.3,3487.8,2.52247807]
[1718958577451,0.49656189,3488.5,3487.8,0.02755247]
[1718958577606,0.49656189,3488.4,3487.8,0.02755247]
[1718958577810,0.49656189,3488.5,3487.6,0.59610149]
[1718958578010,0.49656189,3488.5,3487.7,2.5223331]
[1718958578212,0.49655578,3488.4,3487.8,2.49490187]
[1718958578436,0.49655578,3488.5,3487.5,0.83722709]
[1718958578647,0.64737173,3488.4,3487.9,0.0274286]
[1718958578858,3.0,3488.6,3487.5,0.59942404]
[1718958578859,3.49655478,3488.5,3487.5,0.59942404]
[1718958579016,1.1439273,3488.4,3487.6,2.49490331]
[1718958579214,1.1439273,3488.4,3487.5,0.86916486]
[1718958579215,0.49655478,3488.4,3487.7,2.52233191]
[1718958579439,2.013,3487.9,3487.7,0.0274286]
[1718958579621,1.14391337,3487.8,3487.7,0.0274286]
[1718958579825,4.14391337,3487.8,3486.7,2.4531]
[1718958580035,1.14391337,3487.7,3486.8,0.02691379]
[1718958580212,1.14391337,3487.6,3486.8,0.02691379]
[1718958580438,1.14391337,3487.5,3486.8,0.02691379]
[1718958580617,0.49655966,3487.7,3486.8,0.02691379]
[1718958580812,1.14326672,3487.6,3486.8,0.27491517]
[1718958581012,1.69326672,3487.5,3486.8,0.02691379]
[1718958581252,1.143433,3487.4,3486.3,2.4917]
[1718958581474,1.143433,3487.3,3486.9,0.0270376]
[1718958581626,0.49672594,3487.4,3486.3,2.4917]
[1718958581957,1.14342871,3487.3,3486.4,0.27634692]
[1718958582157,0.49672594,3487.2,3486.4,0.27634692]
[1718958582453,0.49672594,3487.4,3486.4,0.27634692]
[1718958582760,0.6466,3487.3,3486.4,0.27634692]
[1718958583055,0.6466,3487.3,3486.5,0.27680469]
[1718958583056,1.14332594,3487.3,3486.5,0.27680469]
[1718958583263,0.64660741,3487.2,3486.5,0.27680469]
[1718958583422,0.64660741,3487.3,3486.6,0.02718079]
[1718958583769,2.013,3487.0,3485.4,2.4509]
[1718958584061,2.013,3487.0,3485.5,0.02667896]
[1718958584062,1.14333335,3486.9,3485.5,0.02667896]
[1718958584227,0.64660741,3486.8,3485.6,0.2477579]
[1718958584616,0.64660741,3486.8,3485.7,0.02667896]
[1718958584817,0.64660741,3486.7,3485.7,0.02667896]
[1718958585151,0.49672594,3487.0,3485.7,0.02667896]
[1718958585353,0.49672594,3487.2,3485.7,0.02667896]
[1718958585560,0.64677686,3487.1,3485.7,0.02667896]
[1718958585744,0.64677686,3487.0,3485.7,0.02667896]
[1718958585935,0.49672594,3487.4,3485.8,0.22874369]
[1718958586250,0.64676862,3487.3,3485.9,0.05735474]
[1718958586458,0.64676862,3487.3,3485.9,0.0840337]
[1718958586835,0.64676862,3487.3,3486.0,2.4098]
[1718958587080,0.64676862,3487.3,3486.1,0.32960918]
[1718958587257,0.49672594,3487.3,3486.1,0.2989367]
[1718958587470,2.4778,3488.2,3486.1,0.2989367]
[1718958587471,0.49667839,3487.6,3486.1,0.2989367]
[1718958587766,0.64697084,3487.5,3486.2,0.47217367]
[1718958587924,0.64697084,3487.4,3486.2,0.47217367]
[1718958588125,0.64697084,3487.3,3486.3,0.02665229]
[1718958588353,0.49667748,3488.0,3486.3,0.54604333]
[1718958588555,1.19721698,3487.9,3486.3,0.51939104]
[1718958588761,1.14389446,3487.8,3486.3,0.51939104]
[1718958588967,0.64721698,3487.7,3486.3,0.51939104]
[1718958589667,0.55,3487.6,3486.3,0.51939104]
[1718958589994,0.64721698,3487.5,3486.3,0.51939104]
[1718958590288,1.14389446,3487.5,3486.4,0.02665229]
[1718958590602,0.55,3487.6,3486.0,2.4098]
[1718958590603,0.64721698,3487.4,3486.0,2.4098]
[1718958590752,0.64721698,3487.3,3486.1,0.24098]
[1718958590947,1.14392706,3487.3,3486.1,0.26755107]
[1718958591188,3.59142706,3487.2,3486.1,0.02657107]
[1718958591350,1.14392706,3487.1,3486.1,0.02657107]
[1718958591678,1.19721698,3487.0,3484.9,2.2935]
[1718958591879,1.14392706,3486.9,3485.0,0.660224]
[1718958592201,0.64721698,3486.8,3485.0,0.660224]
[1718958592605,0.64721698,3486.8,3485.1,2.3874]
[1718958593093,0.64721698,3486.8,3485.1,5.3874]
[1718958593888,0.64721698,3486.7,3485.1,5.3874]
[1718958594091,0.64721698,3486.6,3485.2,0.8060624]
[1718958594268,0.64721698,3486.5,3485.2,3.8060624]
[1718958594469,0.64721698,3486.4,3485.2,3.8060624]
[1718958594672,0.49679733,3486.9,3485.4,4.4023]
[1718958594880,0.64683338,3486.8,3485.4,4.4023]
[1718958595087,3.0,3487.6,3485.4,4.4023]
[1718958595088,0.64683338,3486.7,3485.4,4.4023]
[1718958595307,0.49679733,3487.5,3485.5,1.05843686]
[1718958595589,0.64679485,3487.4,3485.5,1.05843686]
[1718958595991,0.64679485,3487.4,3485.6,2.3536]
[1718958596488,1.14359218,3487.4,3485.6,2.3536]
[1718958596795,3.0,3487.7,3485.8,4.4588]
[1718958596796,1.14351256,3487.3,3485.8,4.4588]
[1718958596959,0.64679485,3487.2,3485.8,4.4588]
[1718958597155,3.0,3488.1,3485.8,4.4588]
[1718958597156,0.64679485,3487.1,3485.8,4.4588]
[1718958597478,0.64679485,3487.0,3485.9,0.44588]
[1718958597692,0.4966887,3487.4,3485.9,0.44588]
[1718958598010,0.64701788,3487.3,3486.0,2.3507]
[1718958598296,0.49669421,3488.0,3486.0,2.841168]
[1718958598297,0.64701788,3487.2,3486.0,2.841168]
[1718958598596,0.64701788,3487.1,3486.1,0.5300048]
[1718958598783,0.49669421,3488.0,3486.1,0.5300048]
[1718958598998,1.19725692,3487.9,3486.1,0.5300048]
[1718958599170,1.14395113,3487.8,3486.1,0.5300048]
[1718958599373,0.64725692,3487.7,3486.3,2.3912]
[1718958599883,1.14388444,3487.7,3486.5,2.3035]
[1718958600088,0.49662752,3488.7,3486.5,4.3165]
[1718958600397,0.49662752,3488.7,3486.2,0.33711728]
[1718958600398,2.013,3488.4,3486.6,3.194076]
[1718958600606,1.14376751,3488.3,3486.6,2.3035]
[1718958600778,0.64713999,3488.2,3486.6,2.3035]
[1718958600972,1.14376751,3488.2,3486.6,2.3035]
[1718958601194,0.64713999,3488.1,3486.6,2.3035]
[1718958601404,0.64713999,3488.1,3486.7,0.23035]
[1718958602203,1.14375899,3488.1,3486.7,0.23035]
[1718958602386,3.0,3488.3,3486.7,0.23035]
[1718958602387,0.64713999,3488.0,3486.7,0.23035]
[1718958602587,0.64713999,3487.9,3486.7,0.23035]
[1718958602802,0.64713999,3487.8,3486.8,0.253385]
[1718958603002,0.496619,3488.2,3486.8,0.253385]
[1718958603003,0.64713999,3487.7,3486.8,0.253385]
[1718958603320,0.496619,3488.2,3486.9,0.03569565]
[1718958603471,0.64755367,3488.1,3486.9,0.03569565]
[1718958603664,1.14417267,3488.1,3487.0,2.4371]
[1718958603864,0.64755367,3488.0,3487.1,0.30831167]
[1718958604123,0.64755367,3487.9,3487.1,0.30831167]
[1718958604287,0.496619,3488.7,3487.1,0.30831167]
[1718958604463,0.6474981,3488.6,3487.1,0.30831167]
[1718958604664,0.6474981,3488.6,3487.2,0.27454117]
[1718958604909,0.6474981,3488.6,3487.4,2.3554]
[1718958605072,0.6474981,3488.6,3487.5,2.07032925]
[1718958605273,0.4964724,3488.6,3487.6,2.3074]
[1718958605575,2.013,3490.0,3487.7,0.05732642]
[1718958605773,0.49643312,3489.6,3487.8,0.0573224]
[1718958605988,1.1446214,3489.9,3487.8,0.0573224]
[1718958606226,0.64818828,3489.8,3487.8,0.0573224]
[1718958606508,0.64818828,3489.8,3487.9,0.28024953]
[1718958606868,1.1446222,3489.8,3487.9,0.28024953]
[1718958607225,1.14461288,3489.7,3487.9,0.28024953]
[1718958607505,1.14461288,3489.6,3488.0,0.01728192]
[1718958607673,1.14461288,3489.5,3488.1,2.3074]
[1718958607876,0.64818828,3489.4,3488.2,0.24974911]
[1718958608072,0.64818828,3489.3,3488.3,0.01732071]
[1718958608274,0.4963803,3489.7,3488.3,0.25571889]
[1718958608488,0.64830098,3489.6,3488.3,0.25571889]
[1718958608684,0.64830098,3489.5,3488.3,0.25571889]